[Event "Titled Tuesday Blitz March 07 Late 2023"]
[White "Naroditsky, Daniel"]
[Black "Hakobyan, Aram"]
[WhiteFideId "2026961"]
[BlackFideId "13306677"]
[WhiteElo "2633"]
[BlackElo "2563"]
[Result "1-0"]
[Round "09"]
[TimeControl "180+2"]
[Date "2023.03.07"]
[WhiteClock "0:00:05"]
[BlackClock "0:00:03"]

1. d4 {[%clk 0:02:57]}  Nf6 {[%clk 0:02:59]} 2. Nc3 {[%clk 0:02:56]}  d5 {[%clk 0:02:58]} 3. Bf4 {[%clk 0:02:56]}  c5 {[%clk 0:02:58]} 4. e4 {[%clk 0:02:55]}  Nxe4 {[%clk 0:02:59]} 5. Nxe4 {[%clk 0:02:55]}  dxe4 {[%clk 0:03:00]} 6. dxc5 {[%clk 0:02:56]}  Qa5+ {[%clk 0:03:00]} 7. c3 {[%clk 0:02:56]}  Qxc5 {[%clk 0:03:01]} 8. Qa4+ {[%clk 0:02:57]}  Nc6 {[%clk 0:03:01]} 9. Qxe4 {[%clk 0:02:57]}  g6 {[%clk 0:03:00]} 10. Be3 {[%clk 0:02:43]}  Qa5 {[%clk 0:02:54]} 11. Nf3 {[%clk 0:02:42]}  Bg7 {[%clk 0:02:54]} 12. Bc4 {[%clk 0:02:37]}  Bf5 {[%clk 0:02:51]} 13. Qh4 {[%clk 0:02:38]}  Bf6 {[%clk 0:02:33]} 14. Bg5 {[%clk 0:02:16]}  Ne5 {[%clk 0:01:43]} 15. Bxf6 {[%clk 0:01:53]}  Nxf3+ {[%clk 0:01:28]} 16. gxf3 {[%clk 0:01:54]}  exf6 {[%clk 0:01:29]} 17. Qxf6 {[%clk 0:01:46]}  O-O {[%clk 0:01:29]} 18. O-O {[%clk 0:01:44]}  Rac8 {[%clk 0:01:28]} 19. Bb3 {[%clk 0:01:34]}  Rc6 {[%clk 0:01:22]} 20. Qh4 {[%clk 0:01:32]}  Be6 {[%clk 0:01:17]} 21. Rfe1 {[%clk 0:01:23]}  Bxb3 {[%clk 0:01:11]} 22. axb3 {[%clk 0:01:24]}  Qd5 {[%clk 0:01:12]} 23. Rxa7 {[%clk 0:01:14]}  Qxb3 {[%clk 0:01:07]} 24. Qb4 {[%clk 0:01:11]}  Qxb4 {[%clk 0:01:03]} 25. cxb4 {[%clk 0:01:12]}  Rb6 {[%clk 0:01:03]} 26. Re4 {[%clk 0:01:10]}  Rd8 {[%clk 0:01:01]} 27. Re7 {[%clk 0:01:09]}  Rb8 {[%clk 0:00:41]} 28. Re4 {[%clk 0:01:09]}  Rd8 {[%clk 0:00:40]} 29. Kg2 {[%clk 0:01:04]}  Kf8 {[%clk 0:00:40]} 30. Rc4 {[%clk 0:01:02]}  Rd2 {[%clk 0:00:37]} 31. Rc7 {[%clk 0:00:59]}  Rxb4 {[%clk 0:00:30]} 32. Raxb7 {[%clk 0:00:55]}  Rxb7 {[%clk 0:00:30]} 33. Rxb7 {[%clk 0:00:56]}  Kg7 {[%clk 0:00:30]} 34. b4 {[%clk 0:00:56]}  Rb2 {[%clk 0:00:30]} 35. b5 {[%clk 0:00:56]}  Kf6 {[%clk 0:00:31]} 36. b6 {[%clk 0:00:56]}  h5 {[%clk 0:00:31]} 37. Rb8 {[%clk 0:00:53]}  Kf5 {[%clk 0:00:31]} 38. h4 {[%clk 0:00:45]}  Rb4 {[%clk 0:00:30]} 39. Kg3 {[%clk 0:00:44]}  f6 {[%clk 0:00:30]} 40. b7 {[%clk 0:00:42]}  Rb1 {[%clk 0:00:30]} 41. Kg2 {[%clk 0:00:41]}  Rb4 {[%clk 0:00:30]} 42. Kf1 {[%clk 0:00:38]}  Rb2 {[%clk 0:00:30]} 43. Ke1 {[%clk 0:00:36]}  Rb1+ {[%clk 0:00:25]} 44. Ke2 {[%clk 0:00:36]}  Rb3 {[%clk 0:00:25]} 45. Kd2 {[%clk 0:00:34]}  Rb1 {[%clk 0:00:24]} 46. Kc2 {[%clk 0:00:34]}  Rb6 {[%clk 0:00:24]} 47. Kd3 {[%clk 0:00:33]}  Rb1 {[%clk 0:00:24]} 48. Kd4 {[%clk 0:00:30]}  Rb2 {[%clk 0:00:22]} 49. Kd5 {[%clk 0:00:28]}  Rb1 {[%clk 0:00:21]} 50. Kc6 {[%clk 0:00:28]}  Rc1+ {[%clk 0:00:21]} 51. Kd6 {[%clk 0:00:28]}  Rb1 {[%clk 0:00:21]} 52. Ke7 {[%clk 0:00:28]}  Re1+ {[%clk 0:00:20]} 53. Kf7 {[%clk 0:00:27]}  Rb1 {[%clk 0:00:21]} 54. Kg7 {[%clk 0:00:25]}  Rb2 {[%clk 0:00:21]} 55. Kh6 {[%clk 0:00:23]}  Rb1 {[%clk 0:00:21]} 56. Rc8 {[%clk 0:00:16]}  Rxb7 {[%clk 0:00:21]} 57. Rc5+ {[%clk 0:00:17]}  Kf4 {[%clk 0:00:21]} 58. Kxg6 {[%clk 0:00:18]}  Kxf3 {[%clk 0:00:14]} 59. Rxh5 {[%clk 0:00:05]}  Kxf2 {[%clk 0:00:15]} 60. Rf5+ {[%clk 0:00:05]}  Kg3 {[%clk 0:00:14]} 61. h5 {[%clk 0:00:06]}  Kg4 {[%clk 0:00:07]} 62. h6 {[%clk 0:00:06]}  Rb1 {[%clk 0:00:03]} 63. h7 {[%clk 0:00:06]}  Rh1 {[%clk 0:00:03]} 64. Rxf6 {[%clk 0:00:06]}  Rh5 {[%clk 0:00:02]} 65. Rf4+ {[%clk 0:00:05]}  Kxf4 {[%clk 0:00:03]} 66. Kxh5 {[%clk 0:00:05]} 1-0


[Site "https://www.chess.com"]

[Event "Titled Tuesday Blitz March 07 Late 2023"]
[White "Indjic, Aleksandar"]
[Black "Andreikin, Dmitry"]
[WhiteFideId "911925"]
[BlackFideId "4158814"]
[WhiteElo "2614"]
[BlackElo "2736"]
[Result "0-1"]
[Round "09"]
[TimeControl "180+2"]
[Date "2023.03.07"]
[WhiteClock "0:00:04"]
[BlackClock "0:00:04"]

1. d4 {[%clk 0:03:00]}  d5 {[%clk 0:02:57]} 2. c4 {[%clk 0:03:01]}  c6 {[%clk 0:02:57]} 3. Nf3 {[%clk 0:03:00]}  Nf6 {[%clk 0:02:57]} 4. Nc3 {[%clk 0:03:01]}  e6 {[%clk 0:02:58]} 5. Bg5 {[%clk 0:02:59]}  h6 {[%clk 0:02:58]} 6. Bxf6 {[%clk 0:02:59]}  Qxf6 {[%clk 0:02:57]} 7. Qb3 {[%clk 0:03:00]}  dxc4 {[%clk 0:02:54]} 8. Qxc4 {[%clk 0:02:59]}  Nd7 {[%clk 0:02:54]} 9. g3 {[%clk 0:02:54]}  e5 {[%clk 0:02:49]} 10. dxe5 {[%clk 0:02:28]}  Nxe5 {[%clk 0:02:46]} 11. Qe4 {[%clk 0:02:27]}  Bd6 {[%clk 0:02:46]} 12. O-O-O {[%clk 0:02:13]}  Bc7 {[%clk 0:02:45]} 13. Nxe5 {[%clk 0:01:34]}  Qxe5 {[%clk 0:02:45]} 14. f4 {[%clk 0:01:34]}  Qxe4 {[%clk 0:02:32]} 15. Nxe4 {[%clk 0:01:35]}  Ke7 {[%clk 0:02:32]} 16. Bg2 {[%clk 0:01:32]}  Bf5 {[%clk 0:02:22]} 17. Nc3 {[%clk 0:01:28]}  g5 {[%clk 0:02:13]} 18. e3 {[%clk 0:01:26]}  Rae8 {[%clk 0:02:06]} 19. Rhe1 {[%clk 0:01:24]}  h5 {[%clk 0:01:54]} 20. Ne4 {[%clk 0:01:08]}  g4 {[%clk 0:01:52]} 21. Nc5 {[%clk 0:01:04]}  Bc8 {[%clk 0:01:51]} 22. b4 {[%clk 0:01:00]}  h4 {[%clk 0:01:48]} 23. Rd2 {[%clk 0:01:00]}  Rd8 {[%clk 0:01:30]} 24. Red1 {[%clk 0:00:58]}  Rxd2 {[%clk 0:01:30]} 25. Rxd2 {[%clk 0:00:59]}  a5 {[%clk 0:01:24]} 26. a3 {[%clk 0:00:59]}  axb4 {[%clk 0:01:19]} 27. axb4 {[%clk 0:01:00]}  Bd6 {[%clk 0:01:19]} 28. Kc2 {[%clk 0:00:47]}  Bxc5 {[%clk 0:01:04]} 29. bxc5 {[%clk 0:00:45]}  hxg3 {[%clk 0:01:04]} 30. hxg3 {[%clk 0:00:45]}  Rh5 {[%clk 0:01:04]} 31. Bf1 {[%clk 0:00:30]}  Rxc5+ {[%clk 0:01:03]} 32. Kb2 {[%clk 0:00:31]}  Bf5 {[%clk 0:00:57]} 33. Be2 {[%clk 0:00:25]}  b5 {[%clk 0:00:42]} 34. Bd1 {[%clk 0:00:25]}  Be6 {[%clk 0:00:22]} 35. Rd3 {[%clk 0:00:25]}  f5 {[%clk 0:00:20]} 36. Ra3 {[%clk 0:00:25]}  Rd5 {[%clk 0:00:18]} 37. Kc1 {[%clk 0:00:25]}  Kd6 {[%clk 0:00:15]} 38. Bc2 {[%clk 0:00:23]}  b4 {[%clk 0:00:15]} 39. Ra4 {[%clk 0:00:21]}  b3 {[%clk 0:00:07]} 40. Bb1 {[%clk 0:00:10]}  Rb5 {[%clk 0:00:07]} 41. Kb2 {[%clk 0:00:10]}  Rb8 {[%clk 0:00:07]} 42. Rd4+ {[%clk 0:00:09]}  Kc5 {[%clk 0:00:07]} 43. Kc3 {[%clk 0:00:09]}  b2 {[%clk 0:00:05]} 44. Kc2 {[%clk 0:00:06]}  Rb3 {[%clk 0:00:03]} 45. Kd2 {[%clk 0:00:06]}  Bd5 {[%clk 0:00:03]} 46. Rd3 {[%clk 0:00:02]}  Rxd3+ {[%clk 0:00:02]} 47. Bxd3 {[%clk 0:00:03]}  Ba2 {[%clk 0:00:02]} 48. Bxf5 {[%clk 0:00:03]}  b1=Q {[%clk 0:00:03]} 49. Bxb1 {[%clk 0:00:04]}  Bxb1 {[%clk 0:00:04]} 50. e4 {[%clk 0:00:03]}  Bxe4 {[%clk 0:00:04]} 51. Kc3 {[%clk 0:00:04]}  Bf5 {[%clk 0:00:04]} 0-1


[Site "https://www.chess.com"]

[Event "Titled Tuesday Blitz March 07 Late 2023"]
[White "Caruana, Fabiano"]
[Black "Samsonkin, Artiom"]
[WhiteFideId "2020009"]
[BlackFideId "13503111"]
[WhiteElo "2818"]
[BlackElo "2524"]
[Result "1-0"]
[Round "09"]
[TimeControl "180+2"]
[Date "2023.03.07"]
[WhiteClock "0:00:40"]
[BlackClock "0:00:03"]

1. d4 {[%clk 0:01:53]}  Nf6 {[%clk 0:02:56]} 2. c4 {[%clk 0:01:52]}  e6 {[%clk 0:02:57]} 3. Nc3 {[%clk 0:01:52]}  Bb4 {[%clk 0:02:58]} 4. e3 {[%clk 0:01:52]}  O-O {[%clk 0:02:58]} 5. Bd3 {[%clk 0:01:53]}  d5 {[%clk 0:02:58]} 6. a3 {[%clk 0:01:52]}  Bxc3+ {[%clk 0:02:54]} 7. bxc3 {[%clk 0:01:52]}  dxc4 {[%clk 0:02:53]} 8. Bxc4 {[%clk 0:01:53]}  c5 {[%clk 0:02:53]} 9. Ne2 {[%clk 0:01:54]}  Qc7 {[%clk 0:02:50]} 10. Ba2 {[%clk 0:01:54]}  e5 {[%clk 0:02:48]} 11. O-O {[%clk 0:01:48]}  Nc6 {[%clk 0:02:45]} 12. d5 {[%clk 0:01:48]}  Rd8 {[%clk 0:02:41]} 13. c4 {[%clk 0:01:48]}  Ne7 {[%clk 0:02:29]} 14. Bb2 {[%clk 0:01:45]}  b5 {[%clk 0:02:05]} 15. Ng3 {[%clk 0:01:45]}  Nf5 {[%clk 0:01:47]} 16. Nxf5 {[%clk 0:01:32]}  Bxf5 {[%clk 0:01:46]} 17. f3 {[%clk 0:01:32]}  e4 {[%clk 0:01:22]} 18. Bxf6 {[%clk 0:01:31]}  gxf6 {[%clk 0:01:19]} 19. cxb5 {[%clk 0:01:29]}  c4 {[%clk 0:00:55]} 20. Qd4 {[%clk 0:01:29]}  c3 {[%clk 0:00:48]} 21. fxe4 {[%clk 0:01:27]}  Bg6 {[%clk 0:00:48]} 22. Rxf6 {[%clk 0:01:24]}  c2 {[%clk 0:00:40]} 23. Rc1 {[%clk 0:01:20]}  Rac8 {[%clk 0:00:40]} 24. Rc6 {[%clk 0:01:17]}  Qe7 {[%clk 0:00:24]} 25. R1xc2 {[%clk 0:01:09]}  Rb8 {[%clk 0:00:23]} 26. a4 {[%clk 0:01:03]}  Bxe4 {[%clk 0:00:17]} 27. d6 {[%clk 0:00:50]}  Qh4 {[%clk 0:00:13]} 28. Rf2 {[%clk 0:00:48]}  Rf8 {[%clk 0:00:03]} 29. Rc7 {[%clk 0:00:46]}  Qg4 {[%clk 0:00:03]} 30. Rcxf7 {[%clk 0:00:40]} 1-0


[Site "https://www.chess.com"]

[Event "Titled Tuesday Blitz March 07 Late 2023"]
[White "Hambleton, Aman"]
[Black "Bluebaum, Matthias"]
[WhiteFideId "2606577"]
[BlackFideId "24651516"]
[WhiteElo "2511"]
[BlackElo "2638"]
[Result "1/2-1/2"]
[Round "09"]
[TimeControl "180+2"]
[Date "2023.03.07"]
[WhiteClock "0:00:11"]
[BlackClock "0:00:03"]

1. d4 {[%clk 0:03:00]}  d5 {[%clk 0:01:49]} 2. Bf4 {[%clk 0:02:49]}  c5 {[%clk 0:01:47]} 3. e3 {[%clk 0:02:47]}  Nc6 {[%clk 0:01:47]} 4. c3 {[%clk 0:02:45]}  e6 {[%clk 0:01:47]} 5. Nf3 {[%clk 0:02:33]}  Bd6 {[%clk 0:01:46]} 6. dxc5 {[%clk 0:02:18]}  Bxc5 {[%clk 0:01:44]} 7. Nbd2 {[%clk 0:02:18]}  Nf6 {[%clk 0:01:36]} 8. Bd3 {[%clk 0:02:05]}  O-O {[%clk 0:01:35]} 9. O-O {[%clk 0:01:57]}  Re8 {[%clk 0:01:35]} 10. e4 {[%clk 0:01:50]}  Nh5 {[%clk 0:01:06]} 11. Bg5 {[%clk 0:01:35]}  f6 {[%clk 0:01:06]} 12. Bh4 {[%clk 0:01:09]}  Nf4 {[%clk 0:01:06]} 13. Bc2 {[%clk 0:01:09]}  d4 {[%clk 0:00:39]} 14. Nb3 {[%clk 0:01:01]}  Bb6 {[%clk 0:00:39]} 15. cxd4 {[%clk 0:00:44]}  Nxd4 {[%clk 0:00:39]} 16. Nbxd4 {[%clk 0:00:31]}  Bxd4 {[%clk 0:00:40]} 17. Nxd4 {[%clk 0:00:27]}  Qxd4 {[%clk 0:00:40]} 18. Bg3 {[%clk 0:00:27]}  Qxd1 {[%clk 0:00:34]} 19. Rfxd1 {[%clk 0:00:25]}  Ne2+ {[%clk 0:00:28]} 20. Kf1 {[%clk 0:00:25]}  Nxg3+ {[%clk 0:00:29]} 21. hxg3 {[%clk 0:00:26]}  b6 {[%clk 0:00:24]} 22. Bb3 {[%clk 0:00:17]}  Kf8 {[%clk 0:00:23]} 23. Ke2 {[%clk 0:00:15]}  Ke7 {[%clk 0:00:20]} 24. Rac1 {[%clk 0:00:14]}  Ba6+ {[%clk 0:00:20]} 25. Bc4 {[%clk 0:00:14]}  Bxc4+ {[%clk 0:00:17]} 26. Rxc4 {[%clk 0:00:15]}  Rec8 {[%clk 0:00:16]} 27. Rdc1 {[%clk 0:00:14]}  Rxc4 {[%clk 0:00:16]} 28. Rxc4 {[%clk 0:00:15]}  Kd7 {[%clk 0:00:17]} 29. Rd4+ {[%clk 0:00:14]}  Ke7 {[%clk 0:00:18]} 30. Rc4 {[%clk 0:00:13]}  Kd7 {[%clk 0:00:18]} 31. Rd4+ {[%clk 0:00:11]}  Kc7 {[%clk 0:00:13]} 32. Rc4+ {[%clk 0:00:11]}  Kd6 {[%clk 0:00:12]} 33. Rd4+ {[%clk 0:00:10]}  Kc6 {[%clk 0:00:08]} 34. Rc4+ {[%clk 0:00:10]}  Kb7 {[%clk 0:00:08]} 35. Rd4 {[%clk 0:00:10]}  Kc6 {[%clk 0:00:03]} 36. Rc4+ {[%clk 0:00:10]}  Kb7 {[%clk 0:00:03]} 37. Rd4 {[%clk 0:00:11]}  Kc6 {[%clk 0:00:03]} 1/2-1/2


[Site "https://www.chess.com"]

[Event "Titled Tuesday Blitz March 07 Late 2023"]
[White "Rorrer, Grayson"]
[Black "Keymer, Vincent"]
[WhiteFideId "30944996"]
[BlackFideId "12940690"]
[WhiteElo "2200"]
[BlackElo "2651"]
[Result "0-1"]
[Round "09"]
[TimeControl "180+2"]
[Date "2023.03.07"]
[WhiteClock "0:00:31"]
[BlackClock "0:00:11"]

1. e4 {[%clk 0:03:00]}  c6 {[%clk 0:02:57]} 2. d4 {[%clk 0:02:58]}  d5 {[%clk 0:02:58]} 3. exd5 {[%clk 0:02:59]}  cxd5 {[%clk 0:02:58]} 4. Bd3 {[%clk 0:03:00]}  Nf6 {[%clk 0:02:58]} 5. h3 {[%clk 0:03:00]}  Nc6 {[%clk 0:02:58]} 6. c3 {[%clk 0:03:01]}  e5 {[%clk 0:02:59]} 7. dxe5 {[%clk 0:03:01]}  Nxe5 {[%clk 0:02:59]} 8. Nf3 {[%clk 0:03:02]}  Nxd3+ {[%clk 0:03:00]} 9. Qxd3 {[%clk 0:03:03]}  Bd6 {[%clk 0:03:00]} 10. O-O {[%clk 0:03:03]}  O-O {[%clk 0:03:00]} 11. Bg5 {[%clk 0:03:04]}  h6 {[%clk 0:03:00]} 12. Bxf6 {[%clk 0:03:04]}  Qxf6 {[%clk 0:03:00]} 13. Nbd2 {[%clk 0:03:05]}  Bf4 {[%clk 0:02:54]} 14. Rad1 {[%clk 0:03:02]}  Rd8 {[%clk 0:02:50]} 15. Qd4 {[%clk 0:03:01]}  Qxd4 {[%clk 0:02:47]} 16. Nxd4 {[%clk 0:03:02]}  Bd7 {[%clk 0:02:46]} 17. Rfe1 {[%clk 0:03:01]}  Re8 {[%clk 0:02:44]} 18. Nf1 {[%clk 0:03:00]}  Rxe1 {[%clk 0:02:44]} 19. Rxe1 {[%clk 0:03:01]}  Re8 {[%clk 0:02:30]} 20. Ne3 {[%clk 0:02:59]}  Kf8 {[%clk 0:02:14]} 21. Kf1 {[%clk 0:02:55]}  Bc6 {[%clk 0:02:01]} 22. g3 {[%clk 0:02:52]}  Bxe3 {[%clk 0:01:53]} 23. fxe3 {[%clk 0:02:43]}  Bd7 {[%clk 0:01:51]} 24. h4 {[%clk 0:02:41]}  Ke7 {[%clk 0:01:40]} 25. Kf2 {[%clk 0:02:33]}  Kd6 {[%clk 0:01:38]} 26. Rd1 {[%clk 0:02:33]}  a6 {[%clk 0:01:31]} 27. c4 {[%clk 0:02:03]}  dxc4 {[%clk 0:01:10]} 28. Nf5+ {[%clk 0:02:02]}  Kc7 {[%clk 0:01:09]} 29. Nd6 {[%clk 0:01:49]}  Re5 {[%clk 0:01:06]} 30. Nxc4 {[%clk 0:01:48]}  Rc5 {[%clk 0:01:00]} 31. Rd4 {[%clk 0:01:43]}  Be6 {[%clk 0:00:53]} 32. b3 {[%clk 0:01:33]}  Bxc4 {[%clk 0:00:44]} 33. bxc4 {[%clk 0:01:33]}  Ra5 {[%clk 0:00:43]} 34. Rg4 {[%clk 0:01:26]}  g6 {[%clk 0:00:35]} 35. Rf4 {[%clk 0:01:25]}  f5 {[%clk 0:00:35]} 36. Kf3 {[%clk 0:01:16]}  Kd6 {[%clk 0:00:28]} 37. g4 {[%clk 0:01:04]}  Ke5 {[%clk 0:00:18]} 38. h5 {[%clk 0:00:55]}  fxg4+ {[%clk 0:00:18]} 39. Kxg4 {[%clk 0:00:55]}  gxh5+ {[%clk 0:00:17]} 40. Kxh5 {[%clk 0:00:56]}  Rxa2 {[%clk 0:00:15]} 41. Kxh6 {[%clk 0:00:54]}  a5 {[%clk 0:00:13]} 42. Rf7 {[%clk 0:00:48]}  Rb2 {[%clk 0:00:13]} 43. Kg5 {[%clk 0:00:43]}  a4 {[%clk 0:00:14]} 44. Rf5+ {[%clk 0:00:42]}  Ke4 {[%clk 0:00:11]} 45. Ra5 {[%clk 0:00:43]}  Rb4 {[%clk 0:00:12]} 46. c5 {[%clk 0:00:40]}  Kxe3 {[%clk 0:00:12]} 47. Kf5 {[%clk 0:00:41]}  Kd3 {[%clk 0:00:13]} 48. Ke5 {[%clk 0:00:40]}  Kc3 {[%clk 0:00:13]} 49. Kd6 {[%clk 0:00:40]}  Kb2 {[%clk 0:00:13]} 50. Kc7 {[%clk 0:00:40]}  a3 {[%clk 0:00:13]} 51. Ra7 {[%clk 0:00:30]}  a2 {[%clk 0:00:13]} 52. Rxb7 {[%clk 0:00:31]}  Rxb7+ {[%clk 0:00:12]} 53. Kxb7 {[%clk 0:00:32]}  a1=Q {[%clk 0:00:13]} 54. c6 {[%clk 0:00:33]}  Qh1 {[%clk 0:00:13]} 55. Kb6 {[%clk 0:00:34]}  Kb3 {[%clk 0:00:12]} 56. Kc5 {[%clk 0:00:29]}  Qh8 {[%clk 0:00:11]} 57. Kd6 {[%clk 0:00:30]}  Qc8 {[%clk 0:00:11]} 58. c7 {[%clk 0:00:31]} 0-1


[Site "https://www.chess.com"]

[Event "Titled Tuesday Blitz March 07 Late 2023"]
[White "Larino Nieto, David"]
[Black "Rasulov, Vugar"]
[WhiteFideId "2256444"]
[BlackFideId "13402390"]
[WhiteElo "2506"]
[BlackElo "2509"]
[Result "1-0"]
[Round "09"]
[TimeControl "180+2"]
[Date "2023.03.07"]
[WhiteClock "0:00:11"]
[BlackClock "0:00:12"]

1. e4 {[%clk 0:03:00]}  c5 {[%clk 0:02:59]} 2. Nc3 {[%clk 0:03:01]}  Nc6 {[%clk 0:02:59]} 3. g3 {[%clk 0:03:01]}  g6 {[%clk 0:02:58]} 4. Bg2 {[%clk 0:03:02]}  Bg7 {[%clk 0:02:58]} 5. d3 {[%clk 0:03:03]}  d6 {[%clk 0:02:58]} 6. f4 {[%clk 0:03:03]}  Nf6 {[%clk 0:02:57]} 7. h3 {[%clk 0:03:02]}  O-O {[%clk 0:02:57]} 8. Nf3 {[%clk 0:03:03]}  Rb8 {[%clk 0:02:56]} 9. O-O {[%clk 0:03:04]}  b5 {[%clk 0:02:55]} 10. g4 {[%clk 0:03:04]}  b4 {[%clk 0:02:54]} 11. Ne2 {[%clk 0:03:05]}  Nd7 {[%clk 0:02:54]} 12. Ng3 {[%clk 0:03:05]}  c4 {[%clk 0:02:52]} 13. d4 {[%clk 0:03:03]}  c3 {[%clk 0:02:50]} 14. b3 {[%clk 0:03:03]}  Ba6 {[%clk 0:02:40]} 15. Re1 {[%clk 0:03:02]}  e5 {[%clk 0:02:39]} 16. fxe5 {[%clk 0:02:57]}  dxe5 {[%clk 0:02:40]} 17. d5 {[%clk 0:02:57]}  Nd4 {[%clk 0:02:40]} 18. Be3 {[%clk 0:02:51]}  Re8 {[%clk 0:02:38]} 19. Nxd4 {[%clk 0:02:37]}  exd4 {[%clk 0:02:39]} 20. Bxd4 {[%clk 0:02:37]}  Be5 {[%clk 0:02:32]} 21. Bxe5 {[%clk 0:02:35]}  Nxe5 {[%clk 0:02:33]} 22. Qd4 {[%clk 0:02:35]}  Qh4 {[%clk 0:02:28]} 23. Qf2 {[%clk 0:02:29]}  Bb5 {[%clk 0:02:21]} 24. Ne2 {[%clk 0:02:12]}  Qxf2+ {[%clk 0:02:02]} 25. Kxf2 {[%clk 0:02:13]}  Bxe2 {[%clk 0:02:01]} 26. Kxe2 {[%clk 0:02:08]}  Kf8 {[%clk 0:01:49]} 27. a3 {[%clk 0:02:05]}  a5 {[%clk 0:01:45]} 28. axb4 {[%clk 0:02:06]}  axb4 {[%clk 0:01:46]} 29. Ra7 {[%clk 0:01:58]}  g5 {[%clk 0:01:41]} 30. Ke3 {[%clk 0:01:38]}  Ng6 {[%clk 0:01:41]} 31. Kd4 {[%clk 0:01:25]}  Nf4 {[%clk 0:01:40]} 32. Bf1 {[%clk 0:01:26]}  h5 {[%clk 0:01:07]} 33. Rea1 {[%clk 0:01:17]}  h4 {[%clk 0:01:04]} 34. R1a4 {[%clk 0:01:13]}  Kg7 {[%clk 0:00:53]} 35. Rd7 {[%clk 0:01:03]}  Ra8 {[%clk 0:00:53]} 36. Raa7 {[%clk 0:00:48]}  Rxa7 {[%clk 0:00:50]} 37. Rxa7 {[%clk 0:00:49]}  Kg6 {[%clk 0:00:49]} 38. e5 {[%clk 0:00:42]}  Rd8 {[%clk 0:00:40]} 39. d6 {[%clk 0:00:38]}  f6 {[%clk 0:00:33]} 40. Ra6 {[%clk 0:00:17]}  fxe5+ {[%clk 0:00:23]} 41. Kxe5 {[%clk 0:00:18]}  Re8+ {[%clk 0:00:22]} 42. Kd4 {[%clk 0:00:18]}  Re1 {[%clk 0:00:15]} 43. d7+ {[%clk 0:00:12]}  Kf7 {[%clk 0:00:15]} 44. d8=Q {[%clk 0:00:12]}  Ne6+ {[%clk 0:00:11]} 45. Rxe6 {[%clk 0:00:11]}  Rxe6 {[%clk 0:00:12]} 46. Bc4 {[%clk 0:00:11]} 1-0


[Site "https://www.chess.com"]

[Event "Titled Tuesday Blitz March 07 Late 2023"]
[White "Martynov, Pavel"]
[Black "Rustemov, Alexander"]
[WhiteFideId "4101260"]
[BlackFideId "4119002"]
[WhiteElo "2314"]
[BlackElo "2873"]
[Result "0-1"]
[Round "09"]
[TimeControl "180+2"]
[Date "2023.03.07"]
[WhiteClock "0:00:23"]
[BlackClock "0:00:55"]

1. e4 {[%clk 0:03:00]}  e6 {[%clk 0:02:56]} 2. d4 {[%clk 0:03:00]}  d5 {[%clk 0:02:56]} 3. Nc3 {[%clk 0:03:00]}  dxe4 {[%clk 0:02:56]} 4. Nxe4 {[%clk 0:03:00]}  Bd7 {[%clk 0:02:57]} 5. Bd3 {[%clk 0:02:57]}  Bc6 {[%clk 0:02:54]} 6. Ne2 {[%clk 0:02:56]}  Nd7 {[%clk 0:02:54]} 7. O-O {[%clk 0:02:56]}  Ngf6 {[%clk 0:02:55]} 8. N2g3 {[%clk 0:02:55]}  Be7 {[%clk 0:02:54]} 9. c3 {[%clk 0:02:54]}  O-O {[%clk 0:02:54]} 10. Qe2 {[%clk 0:02:54]}  Nxe4 {[%clk 0:02:52]} 11. Nxe4 {[%clk 0:02:54]}  Nf6 {[%clk 0:02:52]} 12. Re1 {[%clk 0:02:52]}  Qd5 {[%clk 0:02:45]} 13. f3 {[%clk 0:02:47]}  Nxe4 {[%clk 0:02:43]} 14. Bxe4 {[%clk 0:02:47]}  Qd6 {[%clk 0:02:43]} 15. Bxc6 {[%clk 0:02:45]}  Qxc6 {[%clk 0:02:43]} 16. Qe4 {[%clk 0:02:45]}  Qxe4 {[%clk 0:02:36]} 17. fxe4 {[%clk 0:02:42]}  Rad8 {[%clk 0:02:30]} 18. Be3 {[%clk 0:02:35]}  f6 {[%clk 0:02:23]} 19. Rad1 {[%clk 0:02:35]}  Kf7 {[%clk 0:02:23]} 20. c4 {[%clk 0:02:29]}  a6 {[%clk 0:02:16]} 21. a3 {[%clk 0:02:28]}  c6 {[%clk 0:02:12]} 22. Kf2 {[%clk 0:02:25]}  Rd7 {[%clk 0:02:12]} 23. Ke2 {[%clk 0:02:21]}  Bd8 {[%clk 0:02:06]} 24. Rd3 {[%clk 0:02:18]}  Bb6 {[%clk 0:02:05]} 25. Red1 {[%clk 0:02:18]}  Rfd8 {[%clk 0:02:05]} 26. d5 {[%clk 0:02:14]}  Bxe3 {[%clk 0:02:01]} 27. dxe6+ {[%clk 0:02:13]}  Kxe6 {[%clk 0:02:01]} 28. Rxd7 {[%clk 0:02:13]}  Rxd7 {[%clk 0:02:01]} 29. Rxd7 {[%clk 0:02:14]}  Kxd7 {[%clk 0:02:01]} 30. Kxe3 {[%clk 0:02:14]}  Kd6 {[%clk 0:02:00]} 31. b4 {[%clk 0:02:07]}  c5 {[%clk 0:01:53]} 32. Kd3 {[%clk 0:01:53]}  cxb4 {[%clk 0:01:51]} 33. axb4 {[%clk 0:01:53]}  b6 {[%clk 0:01:52]} 34. Kd4 {[%clk 0:01:51]}  a5 {[%clk 0:01:50]} 35. Kc3 {[%clk 0:01:38]}  h5 {[%clk 0:01:33]} 36. Kb3 {[%clk 0:01:31]}  h4 {[%clk 0:01:12]} 37. c5+ {[%clk 0:01:26]}  Kc6 {[%clk 0:01:08]} 38. cxb6 {[%clk 0:01:21]}  axb4 {[%clk 0:01:08]} 39. Kxb4 {[%clk 0:01:19]}  Kxb6 {[%clk 0:01:09]} 40. h3 {[%clk 0:00:59]}  Kc6 {[%clk 0:01:08]} 41. Kc4 {[%clk 0:00:59]}  Kd6 {[%clk 0:01:08]} 42. Kd4 {[%clk 0:00:59]}  Ke6 {[%clk 0:01:09]} 43. Kd3 {[%clk 0:00:56]}  Ke5 {[%clk 0:01:08]} 44. Ke3 {[%clk 0:00:56]}  g5 {[%clk 0:01:02]} 45. Kf3 {[%clk 0:00:46]}  Kd4 {[%clk 0:01:02]} 46. g3 {[%clk 0:00:21]}  hxg3 {[%clk 0:00:59]} 47. Kxg3 {[%clk 0:00:22]}  Kxe4 {[%clk 0:00:59]} 48. h4 {[%clk 0:00:22]}  gxh4+ {[%clk 0:00:58]} 49. Kxh4 {[%clk 0:00:23]}  Kf3 {[%clk 0:00:55]} 0-1


[Site "https://www.chess.com"]